Cogmind - Beta 13 *** ADVENTURER MODE // 2024.04.05 @ 23:37:22 Player: Occam Result: Destroyed by DAS Turret with DAS Cannon Performance ------------- Evolutions (0) 0 Regions Visited (3) 600 Robots Destroyed (34) 170 Value Destroyed (732) 732 Prototype IDs (26) 520 Alien Tech Used (0) 0 Bonus (300) 300 TOTAL SCORE: 2322 Bonus ------- Aligned with FarCom 300 Cogmind --------- Core Integrity 0/250 Matter 35/300 Energy 100/100 System Corruption 0% Temperature Cool (0) Movement Core (700) Ox13 Location -10/Exiles Parts ------- > --- POWER (1) -------- (None) > --- PROPULSION (2) --- (None) > --- UTILITY (2) ------ High-capacity Storage Unit Experimental Targeting Computer > --- WEAPON (2) ------- (None) > --- INVENTORY (20) --- Compact Wheel Improved Heat Sink Seismic Detector Advanced Weapon Cycler 8R-AWN's Armor/EX AS-neutralizer No. 17b Light Assault Rifle Heavy Assault Rifle Autogun 8R-AWN's Boregun Grenade Launcher Peak State ------------ > --- POWER ------------ Light Nuclear Core > --- PROPULSION ------- Light Treads Light Treads > --- UTILITY ---------- High-capacity Storage Unit Experimental Targeting Computer > --- WEAPON ----------- Autogun 8R-AWN's Boregun > --- INVENTORY -------- Light Nuclear Core Compact Wheel Improved Heat Sink Seismic Detector Advanced Weapon Cycler 8R-AWN's Armor/EX AS-neutralizer No. 17b Spread Laser Light Assault Rifle Heavy Assault Rifle Autogun Grenade Launcher [Rating: 29] Favorites ----------- Power Ion Engine Engine Ion Engine Power Core Light Nuclear Core Propulsion Light Treads Treads Light Treads Leg Aluminum Leg Wheel Wheel Utility High-capacity Storage Unit Device Seismic Detector Storage High-capacity Storage Unit Processor Experimental Targeting Computer Protection Light Armor Plating Weapon Autogun Energy Gun Spread Laser Ballistic Gun Autogun Launcher Grenade Launcher Special Melee Weapon Datajack Build | -11 -10 -10 -10 ------- Run | Yrd Mat Min Exi Slots Evolved . | . . . . Power . | . . . . Propulsion . | . . . . Utility . | . . . . Weapon . | . . . . Parts Attached 39 | 4 9 6 20 Power 3 | . . . 3 Engine 1 | . . . 1 Core 2 | . . . 2 Reactor . | . . . . Propulsion 7 | 3 2 . 2 Treads 5 | 2 1 . 2 Leg . | . . . . Wheel 2 | 1 1 . . Hover . | . . . . Flight . | . . . . Utility 11 | 1 2 1 7 Device 8 | 1 1 1 5 Storage 1 | . 1 . . Processor 1 | . . . 1 Hackware . | . . . . Protection 1 | . . . 1 Artifact . | . . . . Weapon 18 | . 5 5 8 Energy Gun 5 | . 3 1 1 Energy Cannon . | . . . . Ballistic Gun 9 | . 2 2 5 Ballistic Cannon . | . . . . Launcher 3 | . . 1 2 Special Weapon . | . . . . Impact Weapon . | . . . . Slashing Weapon . | . . . . Piercing Weapon . | . . . . Special Melee Weapon 1 | . . 1 . Unidentified Prototypes 3 | . . . 3 Parts Lost 14 | . . 1 13 Power 3 | . . . 3 Propulsion 4 | . . . 4 Utility 3 | . . 1 2 Weapon 4 | . . . 4 Highest Loss Streak 7 | . . 1 7 To Critical Strikes 5 | . . . 5 Average Slot Usage (%) 96 | . 99 99 92 Engine 11 | . 14 14 8 Core 2 | . . . 5 Treads 16 | . 14 14 19 Wheel 11 | . 14 14 8 Device 11 | . 14 13 8 Storage 14 | . 14 14 14 Processor 1 | . . . 4 Energy Gun 8 | . 8 13 5 Ballistic Gun 16 | . 18 13 14 Launcher 1 | . . . 2 Naked Turns . | . . . . Heaviest Build 56 | 13 53 53 56 Greatest Support 40 | 20 10 10 40 Greatest Overweight (x) 15 | 1 5 5 15 Average Overweight (x) 4 | . 4 5 3 Largest Inventory Capacity 20 | 8 20 20 20 Average Capacity 19 | 8 19 20 20 Most Carried 20 | 7 20 20 20 Average Carried 16 | 6 16 18 15 Final Capacity 20 | 8 20 20 20 Final Carried 20 | 6 19 20 13 Class Distribution -------------------- 98% | Mutant Dominant Class ---------------- Mutant | -10/Materials Mutant | -10/Mines Mutant | -10/Exiles Resources | -11 -10 -10 -10 ----------- Run | Yrd Mat Min Exi Matter Collected 1292 | 210 519 142 421 Remotely . | . . . . Salvage Created 1216 | 112 767 227 110 Parts 75 | 5 51 13 6 Haulers Intercepted 2 | . 2 . . Recyclers Shooed 1 | . 1 . . Parts Field Recycled . | . . . . Retrieved Matter . | . . . . Parts Self-Destructed . | . . . . Prevented . | . . . . Kills | -11 -10 -10 -10 ------- Run | Yrd Mat Min Exi Combat Hostiles Destroyed 22 | . 15 6 1 Guns 20 | . 15 4 1 AOE 2 | . . 2 . Classes Destroyed 9 | 2 5 2 . Worker 1 | . . 1 . Builder 1 | . 1 . . Tunneler 2 | 1 1 . . Hauler 2 | . 2 . . Recycler 3 | 1 2 . . Watcher 3 | . 3 . . Swarmer 6 | . 6 . . Grunt 13 | . 9 4 . Sentry 2 | . . 2 . Best Kill Streak 5 | 2 3 5 1 Combat Bots Only 4 | . 3 4 1 Max Kills in Single Turn 2 | 1 2 2 1 Gunslinging 1 | . 1 . . Exploded 1 | . . 1 . Melee . | . . . . Uniques/NPCs Destroyed 1 | . . . 1 8R-AWN (-10/Exiles) Combat | -11 -10 -10 -10 -------- Run | Yrd Mat Min Exi Hostile Shots Fired 137 | . 37 22 78 Missed 25 | . 10 6 9 Damage Taken 1581 | . 158 131 1292 Core 266 | . 40 15 211 Absorbed by Shields 128 | . 49 28 51 Ignored by Resistances 478 | . 66 49 363 Core Remaining (%) 100 | 100 . . . Volleys Fired 120 | 5 43 10 62 Largest 2 | 2 2 2 2 Hottest 130 | 80 130 88 46 Shots Fired 216 | 10 86 20 100 Gun 187 | 10 86 14 77 Cannon . | . . . . Launcher 29 | . . 6 23 Special . | . . . . Kinetic 163 | . 76 10 77 Thermal 24 | 10 10 4 . Explosive 29 | . . 6 23 Electromagnetic . | . . . . Robot Hit Streak 22 | 8 16 9 22 Robot Miss Streak 7 | 1 7 2 2 Penetration Max . | . . . . Secondary Targets 2 | . 2 . . Max Gunslinging Chain 1 | . 1 . . Shots Hit Robots 143 | 8 62 9 64 Core Hits 77 | 3 36 14 24 Critical Kills . | . . . . Critical Parts Destroyed . | . . . . Critical Strikes 1 | . . . 1 Destroy 1 | . . . 1 Melee Attacks . | . . . . Impact . | . . . . Slashing . | . . . . Piercing . | . . . . Sneak Attacks . | . . . . Combat Hostiles . | . . . . Follow-up Attacks . | . . . . Damage Inflicted 2732 | 88 941 382 1321 Guns 2088 | 88 936 110 954 Cannons . | . . . . Explosions 639 | . . 272 367 Melee . | . . . . Ramming 5 | . 5 . . Kinetic 1811 | . 802 55 954 Thermal 277 | 88 134 55 . Explosive 639 | . . 272 367 Electromagnetic . | . . . . Impact . | . . . . Slashing . | . . . . Piercing . | . . . . Highest Corruption . | . . . . Average Corruption . | . . . . Corruption Purged . | . . . . Corruption Blocked . | . . . . Overload Shots . | . . . . Overflow Damage . | . . . . Projectiles . | . . . . Explosions . | . . . . Melee . | . . . . Knockbacks . | . . . . Impact . | . . . . Kinetic . | . . . . Secondary . | . . . . Self-Inflicted Damage 6 | . 2 4 . Shots 2 | . . 2 . Rammed 1 | . 1 . . Targets Rammed 1 | . 1 . . Kicked . | . . . . Crushed . | . . . . Highest Temperature 211 | 54 211 120 50 Average Temperature 26 | 25 32 41 13 Received Heat Transfer 172 | . 82 90 . Siege Activations . | . . . . Robots Corrupted . | . . . . Combat Hostiles . | . . . . Parts Fried . | . . . . Impact Corruptions . | . . . . Robots Melted . | . . . . Combat Hostiles . | . . . . Parts Melted 2 | 1 . 1 . Heat Transferred 440 | 200 175 65 . Parts Sabotaged . | . . . . Parts Stolen . | . . . . Parts Stripped . | . . . . Power Chain Reactions . | . . . . Alert | -11 -10 -10 -10 ------- Run | Yrd Mat Min Exi Peak Influence 279 | 10 279 129 . Initial 5 | . 5 . . Average 92 | 7 114 56 . Maximum Alert Level 1 | . 1 . . Low Security (%) 92 | 100 89 100 . Level 1 7 | . 10 . . Level 2 . | . . . . Level 3 . | . . . . Level 4 . | . . . . Level 5 . | . . . . High Security . | . . . . Max Security . | . . . . Squads Dispatched 2 | . 2 . . Investigation 2 | . 2 . . Extermination . | . . . . Reinforcement . | . . . . Assault . | . . . . Garrison . | . . . . Intercept . | . . . . Searches Triggered . | . . . . Construction Impeded . | . . . . Haulers Reinforced . | . . . . Active Scanning Responses . | . . . . Cargo Convoy Interrupts . | . . . . Stealth | -11 -10 -10 -10 --------- Run | Yrd Mat Min Exi Distress Signals . | . . . . Communications Jammed . | . . . . Distress Signals . | . . . . Times Spotted 76 | . 20 6 50 Peak Tracking Total 9 | . 4 3 9 Tactical Retreats 10 | . 1 . 9 Traps | -11 -10 -10 -10 ------- Run | Yrd Mat Min Exi Traps Triggered 4 | . 4 . . Indirectly . | . . . . Trap Hack Attempts . | . . . . Triggered . | . . . . Disarmed . | . . . . Reprogrammed . | . . . . Reused . | . . . . Traps Extracted . | . . . . Installed . | . . . . Triggered 1 | . . 1 . Machines | -11 -10 -10 -10 ---------- Run | Yrd Mat Min Exi Machines Disabled 3 | . 1 . 2 Max in Single Turn 1 | . 1 . 1 Machines Repaired . | . . . . Machines Dismantled . | . . . . Machines Sabotaged . | . . . . Overloaded Fab Kills . | . . . . Hacking | -11 -10 -10 -10 --------- Run | Yrd Mat Min Exi Machines Accessed 10 | . 8 . 2 Terminals 8 | . 8 . . Fabricators . | . . . . Repair Stations . | . . . . Recycling Units . | . . . . Scanalyzers . | . . . . Garrison Access . | . . . . Total Hacks 29 | . 27 . 2 Successful 12 | . 10 . 2 Failed 16 | . 16 . . Catastrophic 3 | . 3 . . Database Lockouts 1 | . 1 . . Manual 26 | . 25 . 1 Terminals 27 | . 27 . . Fabricators . | . . . . Repair Stations . | . . . . Recycling Units . | . . . . Scanalyzers . | . . . . Garrison Access . | . . . . Terminal Hacks 9 | . 7 . 2 Record 1 | . . . 1 Part Schematic 1 | . 1 . . Robot Analysis 5 | . 5 . . Terminal Index 1 | . 1 . . Derelict Proto ID Bank 1 | . . . 1 Fabricator Hacks . | . . . . Repair Station Hacks . | . . . . Recycling Unit Hacks . | . . . . Scanalyzer . | . . . . Garrison Access Hacks . | . . . . Unauthorized Hacks 3 | . 3 . . Terminals 3 | . 3 . . Botnet 3 | . 3 . . Fabricators . | . . . . Repair Stations . | . . . . Recycling Units . | . . . . Scanalyzers . | . . . . Garrison Access . | . . . . Data Cores Recovered . | . . . . Used . | . . . . Hacking Detections 8 | . 8 . . Full Trace Events . | . . . . Feedback Events . | . . . . Feedback Blocked . | . . . . Robot Schematics Acquired . | . . . . Robots Built . | . . . . Authchips . | . . . . Time . | . . . . Total Robot Build Rating . | . . . . Part Schematics Acquired 1 | . 1 . . Parts Built . | . . . . Authchips . | . . . . Time . | . . . . Total Part Build Rating . | . . . . Parts Repaired . | . . . . Time . | . . . . Parts Recycled . | . . . . Recycled Matter . | . . . . Retrieved Matter . | . . . . Retrieved Components . | . . . . Parts Scanalyzed . | . . . . Part Schematics Acquired . | . . . . Parts Damaged . | . . . . Bothacking | -11 -10 -10 -10 ------------ Run | Yrd Mat Min Exi Used RIF Installer . | . . . . Robots Hacked . | . . . . Non-combat . | . . . . Combat . | . . . . Robot Hacks Applied . | . . . . Relay Couplers Released . | . . . . Fabnet Peak Effective % . | . . . . Robots Rewired . | . . . . Allies Hacked . | . . . . Hacks Repelled . | . . . . Allies | -11 -10 -10 -10 -------- Run | Yrd Mat Min Exi Total Allies 3 | . . 3 . Largest Group 3 | . . 3 3 Highest-Rated Group 40 | . . 40 40 Highest-Rated Ally 16 | . . 16 16 Total Orders 4 | . . . 4 STAY 3 | . . . 3 EXPLORE 1 | . . . 1 Ally Attacks 17 | . . 6 11 Total Damage 128 | . . 86 42 Kills 2 | . . . 2 Allies Corrupted . | . . . . Allies Melted . | . . . . Intel | -11 -10 -10 -10 ------- Run | Yrd Mat Min Exi Robot Analysis Total 5 | . 5 . . Derelict Logs Recovered 1 | . . 1 . Drone Launches 1 | . . . 1 Drone Recoveries . | . . . . Exploration | -11 -10 -10 -10 ------------- Run | Yrd Mat Min Exi Turns Passed 3488 | 51 1260 640 1537 Spaces Moved 1818 | 28 700 389 701 Core 1 | . . . 1 Treads 206 | . . . 206 Legs 17 | 17 . . . Wheels 1594 | 11 700 389 494 Hover . | . . . . Flight . | . . . . Fastest Speed 95 | 95 95 155 155 Average Speed 163 | 110 152 155 181 Slowest Speed 800 | 120 155 155 800 Overloaded Moves . | . . . . Propulsion Burnouts . | . . . . Robots Hopped . | . . . . Cave-ins Triggered . | . . . . Exploration Rate (%) 68 | 3 96 83 91 Regions Visited 3 Branch Regions 2 Pre-discovered Areas 1 | . . . 1 Known Exits Taken . | . . . . Unknown Exits Taken 3 | 1 1 1 . Scrap Searched 2 | . . 2 . Spaces Dug 5 | . . 5 . Terrain Destroyed 71 | . 32 39 . Melee . | . . . . Projectile . | . . . . AOE 71 | . 32 39 . Terrain Rammed . | . . . . Walls Destroyed . | . . . . Machines Disabled . | . . . . Actions | -11 -10 -10 -10 --------- Run | Yrd Mat Min Exi Total 2157 | 38 821 406 892 Wait 118 | . 37 . 81 Move 1815 | 27 699 388 701 Hop . | . . . . Pick Up 30 | . 19 2 9 Fast Attach 9 | 1 3 . 5 Attach 13 | 2 . 1 10 Detach 9 | 2 3 . 4 Swap 17 | 1 6 5 5 Drop 25 | . 10 . 15 Fire 120 | 5 43 10 62 Melee . | . . . . Ram 1 | . 1 . . Kick . | . . . . Crush . | . . . . Escape Stasis . | . . . . Rewire . | . . . . Trap . | . . . . Miscellaneous . | . . . . Route ------- -11/Scrapyard -10/Materials (discovered 4 exits: [*Mat x3] / [*Min]) -10/Mines (discovered 2 exits: [*Mat] / *Exi) -10/Exiles (discovered 2 exits: [*Min x2]) History --------- Turn | Location | Event 1 | -11/Scrapyard | Discovered new exit (range 2) 52 | -11/Scrapyard | Entered Materials 307 | -10/Materials | Build established: Mutant 400 | -10/Materials | Discovered new exit (range 9) 563 | -10/Materials | Discovered new exit (range 3) 705 | -10/Materials | Discovered new exit (range 11) 1104 | -10/Materials | Discovered new exit (range 4) 1202 | -10/Materials | Central database locked down 1312 | -10/Materials | Entered Mines 1328 | -10/Mines | Learned Materials security intel 1419 | -10/Mines | Assembled infested the area 1424 | -10/Mines | Assisted by a Guerilla fighting off Assembled 1670 | -10/Mines | Assisted by bots powering up and referring to "LRC-V3" 1791 | -10/Mines | Discovered new exit (range 11) 1946 | -10/Mines | Deemed a non-threat by the Exiles lab entrance 1946 | -10/Mines | Discovered new exit (range 5) 1952 | -10/Mines | Entered Exiles 1952 | -10/Exiles | Accompanied by 3 allies 1997 | -10/Exiles | Met 8R-AWN 2022 | -10/Exiles | Met EX-HEX 2087 | -10/Exiles | Met EX-BIN 2106 | -10/Exiles | Aligned with FarCom system 2107 | -10/Exiles | Given EX-Vault access code 2143 | -10/Exiles | Opened EX-Vault 2154 | -10/Exiles | Found Supersonic Drone Bay 2160 | -10/Exiles | Discovered new exit (range 60) 2167 | -10/Exiles | Discovered new exit (range 66) 2189 | -10/Exiles | Found Skeleton Box 2223 | -10/Exiles | Warned to stay clear of 0b10 Research branches 2265 | -10/Exiles | Met EX-DEC 2271 | -10/Exiles | Learned location of Zion (-6) 2727 | -10/Exiles | Attacked by the Exiles 2850 | -10/Exiles | Lost 3 allies 2857 | -10/Exiles | Core integrity fell below 50% 2917 | -10/Exiles | Destroyed 8R-AWN 2926 | -10/Exiles | Found Prototype Ballistic Gun 2926 | -10/Exiles | Identified 8R-AWN's Boregun 2931 | -10/Exiles | Lost 7 parts (1p2n2u2w) 2931 | -10/Exiles | Found Prototype Protection 2941 | -10/Exiles | Found Prototype Device 2941 | -10/Exiles | Identified AS-neutralizer No. 17b 3003 | -10/Exiles | Found Prototype Processor 3003 | -10/Exiles | Identified Exp. Targeting Computer 3482 | -10/Exiles | Core integrity fell below 20% 3489 | -10/Exiles | Destroyed by DAS Turret with DAS Cannon Last Messages --------------- 02969_ Acquired 55 matter. 02972_ Acquired 48 matter. 03003_ Acquired Prototype Processor. 03003_ Identified Exp. Targeting Computer. 03012_ Acquired 5 matter. 03014_ Acquired 6 matter. 03051_ Machine disabled. 03112_ Acquired 6 matter. 03114_ Acquired 5 matter. 03119_ Acquired 10 matter. 03237_ Lgt. Nuclear Core destroyed. 03245_ Autogun destroyed. 03246_ Acquired 13 matter. 03479_ Lgt. Treads destroyed. 03481_ Acquired 12 matter. 03483_ Lgt. Treads destroyed. 03483_ Knocked back. 03485_ Spread Laser destroyed. 03489_ Lgt. Nuclear Core destroyed. 03489_ Critical hit (Blast). Map ----- +----------------------------------------------------+ | ??????????????????????????????????#" #? | | ??????????????????????????????????#" ## #? | | ??????????????????????????????????#""""""?# #? | | ??????????????????????????????????##"###??# #? | | ?????????????????????????????????? ??????# #? | | ?????????????????????????????????""???????# #? | | ?????????????????????????????????????????## ## | | ?????????#######?????????????????????????#" | | ###??????#!!! "#?????????????????????????#" | | ""##?????# "#?????????????????????????#" | | #?????# "#?????????????????????????#" | | ##???## ""#??????????########???????#" | | #####" ""#??????????# """#???????#" | | ##" ""#??????????#"" """#???????## | | #"" ###??????????#"" #????????# | | #????????????#"" #????????#" | | "# ##???????????#"" "#????????#" | | """ "##??????????# ""?????????#" " | | ### !! "##??????????"" "?????????##" ## | | = = ##??????????# #????????##"" #? | | = "" ######???### ###?######"" #? | | [ "" " """#####X# #"###""""""" ## | | ####" """""" " "" # | | ""###??##"# % "" """ " | | #####?????#### % " | | ?????????????### @ % | | ???????????????### | | ?????????????????## | | ??????????????????## % | | ???????????????????##" | | ????????????????????#""" """""" | | ???????????????????##" ######""" | | ???????????????????#"" ""##????#####" | | ??????????????????##"" """##?????????## | | ??????????????????#""" """##???????????# | | ??????????????????#""" ""#???????????## | | ??????????????????#"" ########??####" | | ??????????????????#""" ## ####""" | | ??????????????????#"" t """" | | ??????????????????##"" | | ???????????????????#"""" | | ???????????????????## | | ????????????????????#" " "" | | ????????????????????#"""" ""## ##"" | | ????????????????????#"" ""#### #### | | ????????????????????#" """"##??# #??? | | ????????????????????#""" """#??## #### | | ????????????????????## ""##??#! "!# | | ?????????????????????#"" """##???#" !# | | ?????????????????????##""" ##????#" "# | +----------------------------------------------------+ Best States ------------- Heat Dissipation 25 Energy Generation 14 Energy Capacity 265 Matter Stores 300 Matter Capacity 300 Sight Range 16 Terrain Scan Density 10 Armor Coverage 150 Resistance: KI 20 Resistance: TH 20 Resistance: EX 20 Resistance: EM 20 Resistance: I 20 Resistance: S 20 Resistance: P 20 Weapon Cycling 25 Evasion (%) 50 Targeting Accuracy 12 Recoil Reduction 2 Offensive Hacking 10 Item Schematics ----------------- Huge Storage Unit | -10/Materials | Hacked Robot Schematics ------------------ None Fabricated ------------ Nothing Alien Tech Used ----------------- None Achievements -------------- None Challenges ------------ None Game ------ Seed ThunderChainRigger Manual? 0 Play Time 00:28:51 Cumulative 191.7 hours Start 2024.04.05 @ 22:52:42 End 2024.04.05 @ 23:37:22 Sessions 1 Manual Loads 0 Difficulty Adventurer Special Mode None Game No. 140 Rogue 0 Adventurer 140 Explorer 0 Win Type - Total 3 Types 2/0/0/1/0/0/0/0/0 Lore% 60 Gallery% 67 Achievement% 58 Wizard Run 0 Options --------- Layout 0 ASCII 0 Keyboard 0 Movement Mouse Keybinds 0 Fullscreen 2 Font 20/SmallcapsGlow Map View 66x50 Zoom Use 0% Tactical HUD 1 Map Filters NONE Filters NONE Steam X RUN: ee8f492f-d43d-45a9-8df5-f6981e1fb70f